bitfinex/quotes_ETHUSD_20260226
["timestamp","ask_amount","ask_price","bid_price","bid_amount"]
[1772064772151,8.33674661,2067.6,2066.9,1.82019864]
[1772064772152,1.68,2067.6,2066.9,1.82019864]
[1772064772448,2.88894475,2068.0,2067.1,1.82019864]
[1772064772650,1.53487571,2067.9,2067.0,1.48827842]
[1772064772856,1.53487571,2067.9,2066.8,1.82019864]
[1772064773054,2.74389012,2067.8,2066.9,1.20954085]
[1772064773833,1.53487571,2067.5,2066.7,0.001]
[1772064774020,1.53487571,2067.3,2066.7,0.001]
[1772064774459,1.53487571,2067.3,2066.7,1.21065728]
[1772064774755,1.53487571,2067.3,2066.7,1.21065255]
[1772064775337,2.74421767,2067.3,2066.7,0.001]
[1772064776737,1.20907288,2067.7,2067.0,1.82019864]
[1772064776967,1.20907288,2067.7,2066.8,3.37499151]
[1772064777340,1.20907288,2067.7,2066.9,1.20954085]
[1772064777563,1.20907288,2067.7,2067.0,1.55479287]
[1772064777765,1.20881133,2068.2,2067.2,3.37499151]
[1772064778083,2.65871097,2068.3,2067.4,1.82019864]
[1772064778268,4.47890961,2068.3,2067.2,1.55479287]
[1772064778434,1.44994984,2068.2,2067.2,1.55479287]
[1772064778642,1.44994984,2068.0,2067.0,1.82019864]
[1772064778835,1.44994984,2067.8,2066.9,2.74854085]
[1772064779155,1.44994984,2067.8,2066.9,1.21054085]
[1772064779665,1.44994984,2067.6,2066.9,0.001]
[1772064779973,1.44994984,2067.5,2066.9,0.001]
[1772064780342,1.44994984,2067.3,2066.9,0.001]
[1772064780540,1.44994984,2067.3,2066.7,0.001]
[1772064780741,1.44994984,2067.1,2066.7,0.001]
[1772064781061,1.82019864,2067.0,2066.5,0.001]
[1772064781257,1.679,2066.9,2066.5,0.001]
[1772064781638,2.88858244,2066.9,2066.5,0.001]
[1772064782738,4.33853228,2066.9,2066.5,0.001]
[1772064783266,1.679,2066.9,2066.6,1.82019864]
[1772064783465,1.68,2067.3,2066.6,1.82019864]
[1772064783766,1.68,2067.3,2066.7,1.2096579]
[1772064784754,2.88930962,2067.3,2066.6,1.20966891]
[1772064787066,2.88930962,2067.3,2066.5,4.83999972]
[1772064788459,2.88930962,2067.3,2066.6,1.82019864]
[1772064789567,2.88930962,2067.3,2066.7,1.2096579]
[1772064790081,1.68,2067.3,2066.8,1.82019864]
[1772064791558,1.679,2067.7,2067.1,1.20942383]
[1772064791860,2.88807306,2067.7,2067.1,1.20942383]
[1772064792566,0.002,2067.3,2067.1,1.20942383]
[1772064792885,0.002,2067.3,2067.2,1.82019864]
[1772064793581,0.002,2067.6,2067.3,1.20930682]
[1772064793783,0.002,2067.6,2067.4,1.82019864]
[1772064794080,1.679,2068.1,2067.4,1.82019864]
[1772064794249,10.36,2068.3,2067.6,3.64039728]
[1772064794453,0.002,2068.4,2067.9,1.82019864]
[1772064794650,0.002,2068.4,2067.6,3.37499151]
[1772064794863,1.44994984,2068.3,2067.4,1.82019864]
[1772064795081,1.44994984,2068.1,2067.0,1.20942674]
[1772064795252,1.44994984,2067.9,2067.0,1.82019864]
[1772064795453,1.44994984,2067.9,2066.9,4.30528725]
[1772064795677,1.20900288,2067.9,2067.2,1.82019864]
[1772064798009,1.679,2068.0,2067.4,1.82019864]
[1772064798395,0.002,2068.4,2067.3,1.20930682]
[1772064798396,1.20874382,2068.3,2067.8,1.82019864]
[1772064798577,4.33865528,2068.4,2067.8,1.82019864]
[1772064798964,4.33865528,2068.4,2067.6,3.64039728]
[1772064798965,4.33865528,2068.4,2067.6,1.82019864]
[1772064799163,4.33865528,2068.4,2067.8,1.82019864]
[1772064799491,4.33865528,2068.4,2067.6,1.82019864]
[1772064799800,2.88870544,2068.4,2067.8,1.82019864]
[1772064799976,2.88870544,2068.4,2067.7,1.20907288]
[1772064800162,2.88870544,2068.4,2067.6,4.58407612]
[1772064800559,1.44994984,2068.3,2067.4,2.74920467]
[1772064800786,1.44994984,2068.1,2067.1,3.02962247]
[1772064801262,1.44994984,2068.0,2067.1,1.82019864]
[1772064801458,1.44994984,2067.8,2067.0,4.56966981]
[1772064802106,1.44994984,2067.8,2067.2,1.82019864]
[1772064802478,2.88799084,2067.9,2067.2,1.82019864]
[1772064802678,4.33794068,2067.9,2067.2,1.82019864]
[1772064803305,4.33794068,2067.9,2067.1,2.55016569]
[1772064803503,1.44994984,2067.8,2067.1,2.55016569]
[1772064803707,1.44994984,2067.8,2067.0,5.29963686]
[1772064804391,2.65896733,2067.8,2067.2,2.55016569]
[1772064804693,2.88797928,2067.9,2067.2,2.55016569]
[1772064805716,1.679,2067.9,2067.4,2.55016569]
[1772064806016,0.002,2067.8,2067.4,2.55016569]
[1772064806186,0.002,2067.8,2067.5,1.20918984]
[1772064806388,0.002,2067.8,2067.4,5.11130061]
[1772064806590,0.002,2067.8,2067.4,1.20920622]
[1772064807019,0.002,2067.8,2067.2,1.21032135]
[1772064807207,0.002,2067.8,2067.4,2.55016569]
[1772064807801,1.38637582,2067.8,2067.2,0.001]
[1772064808219,1.20907288,2067.7,2067.2,0.001]
[1772064808611,1.38437582,2067.6,2067.2,0.001]
[1772064808993,1.20907288,2067.7,2067.2,0.001]
[1772064810332,1.38437582,2067.5,2066.7,0.001]
[1772064810543,1.38437582,2067.3,2066.7,0.001]
[1772064810827,1.38437582,2067.1,2066.7,0.001]
[1772064811029,1.38437582,2067.1,2066.5,0.001]
[1772064812920,1.20948234,2067.0,2066.5,0.001]
[1772064813637,1.40415303,2066.8,2066.5,0.001]
[1772064813851,1.40415303,2066.6,2065.6,1.46497383]
[1772064814015,1.40415303,2066.3,2065.4,1.21141374]
[1772064814342,1.679,2066.2,2065.4,1.21141374]
[1772064814500,1.679,2066.2,2065.5,4.01513952]
[1772064814928,1.21000919,2066.1,2065.4,1.21141374]
[1772064815630,1.21000919,2066.1,2065.4,1.21140987]
[1772064816528,1.679,2066.2,2065.4,2.6763837]
[1772064816711,2.88895343,2066.2,2065.4,2.6763837]
[1772064817146,2.88895343,2066.2,2065.4,5.22654939]
[1772064817347,6.84327215,2066.2,2065.4,0.001]
[1772064817638,1.40415303,2065.9,2065.4,0.001]
[1772064819049,5.43911912,2066.2,2065.6,2.55016569]
[1772064819050,1.679,2066.2,2065.6,2.55016569]
[1772064819259,1.679,2066.6,2065.8,2.55016569]
[1772064819464,1.40415303,2066.8,2066.2,2.55016569]
[1772064819465,0.002,2066.8,2066.2,2.55016569]
[1772064819643,0.002,2066.8,2066.4,2.55016569]
[1772064820549,0.002,2066.8,2066.2,1.46497383]
[1772064820856,0.002,2066.8,2066.1,2.56405577]
[1772064821061,0.002,2066.8,2066.2,1.20995063]
[1772064821778,0.002,2066.8,2066.4,2.55016569]
[1772064823241,0.002,2066.8,2066.3,1.20984987]
[1772064823654,0.002,2066.8,2066.0,1.21005838]
[1772064823655,1.40615303,2066.8,2066.0,1.21005838]
[1772064825340,1.2096579,2066.7,2065.8,3.7603506]
[1772064825964,1.2096579,2066.7,2065.8,5.22532443]
[1772064826556,1.40415303,2066.6,2065.7,1.539]
[1772064826746,1.40415303,2066.6,2065.7,2.74923155]
[1772064827141,1.675,2066.5,2065.7,1.21023155]
[1772064827445,1.675,2066.5,2065.9,1.21012633]
[1772064827650,2.88477961,2066.5,2065.9,1.21012633]
[1772064827946,2.88477635,2066.5,2065.9,1.21012633]
[1772064828146,1.675,2066.5,2065.9,1.21012633]
[1772064828352,2.88478333,2066.5,2065.9,1.21012633]
[1772064828557,1.675,2066.5,2065.9,1.21012633]
[1772064829078,2.88477917,2066.5,2065.9,1.21012633]
[1772064829381,1.675,2066.5,2065.9,1.21012633]
[1772064829779,2.88478301,2066.5,2065.9,1.21012633]
[1772064830182,1.675,2066.5,2065.9,1.21012633]
[1772064830480,2.88477646,2066.5,2065.9,1.21012633]
[1772064830674,2.88477721,2066.5,2065.9,1.21012633]
[1772064830994,1.675,2066.5,2065.9,1.21012633]
[1772064831288,1.675,2066.5,2066.0,2.55016569]
[1772064831579,1.675,2066.5,2066.1,1.21100919]
[1772064831779,0.002,2066.3,2066.1,1.21100919]
[1772064832602,0.002,2066.5,2066.2,2.55016569]
[1772064833809,0.002,2066.5,2066.3,1.20989207]
[1772064834305,0.002,2066.5,2066.1,0.001]
[1772064834807,0.002,2066.5,2066.1,1.21099719]
[1772064834978,0.002,2066.5,2066.1,0.001]
[1772064835302,0.002,2066.5,2066.1,1.21099535]
[1772064835625,0.002,2066.5,2066.2,2.55016569]
[1772064835778,0.002,2066.5,2066.1,1.21099535]
[1772064837407,0.002,2066.8,2066.3,3.86426467]
[1772064837572,0.002,2066.8,2066.5,2.55016569]
[1772064837895,0.002,2066.8,2066.5,1.20973178]
[1772064838677,0.002,2066.8,2066.2,1.549]
[1772064838974,0.002,2066.8,2066.1,1.21098482]
[1772064838975,1.37306382,2066.8,2066.1,1.21098482]
[1772064839786,1.2096579,2066.7,2066.1,0.001]
[1772064840203,4.25170478,2066.8,2066.1,0.001]
[1772064840384,4.25170478,2066.8,2066.1,2.55116569]
[1772064841013,1.671,2066.8,2066.3,2.55016569]
[1772064841820,1.671,2066.8,2066.1,1.31509898]
[1772064841821,0.002,2066.8,2066.1,1.31509898]
[1772064841990,0.002,2066.8,2066.2,3.76011632]
[1772064842189,0.002,2066.8,2066.4,2.55016569]
[1772064843688,0.002,2066.8,2066.6,2.55016569]
[1772064843997,0.002,2066.8,2066.7,1.2096579]
[1772064844301,0.002,2067.0,2066.7,1.2096579]
[1772064844510,0.002,2067.3,2066.8,2.55016569]
[1772064845209,0.002,2067.1,2066.8,2.55016569]
[1772064845408,0.002,2067.1,2066.7,1.2096579]
[1772064846818,0.002,2067.3,2067.0,2.55016569]
[1772064847030,1.67,2067.8,2067.2,2.55016569]
[1772064847345,0.002,2067.8,2067.4,2.55016569]
[1772064847529,0.002,2067.8,2067.2,3.86426467]
[1772064848026,0.002,2067.8,2067.3,1.20930682]
[1772064850601,0.002,2067.8,2067.3,2.5234058]
[1772064850805,0.002,2067.8,2067.3,1.20930682]
[1772064852231,0.002,2067.8,2067.2,3.86426467]
[1772064854328,0.002,2067.8,2067.3,1.20930682]
[1772064855925,0.002,2067.8,2067.6,2.55016569]
[1772064856823,0.002,2067.8,2067.5,1.20914448]
[1772064857028,0.002,2067.6,2067.4,1.20920243]
[1772064857223,0.002,2067.6,2067.3,1.20926244]
[1772064858415,1.37306382,2067.6,2066.9,6.40299893]
[1772064859039,1.37306382,2067.6,2067.1,2.55016569]
[1772064859736,0.002,2067.6,2067.1,2.55016569]
[1772064859940,0.002,2067.6,2067.3,2.55016569]
[1772064860126,0.005,2068.0,2067.3,3.86426467]
[1772064860439,0.002,2068.1,2067.4,2.55016569]
[1772064860650,1.37106382,2068.0,2067.3,1.31409898]
[1772064860941,2.57998256,2068.0,2067.4,1.20924833]
[1772064861169,1.37106382,2067.9,2067.3,1.20928593]
[1772064861347,1.37106382,2067.9,2067.2,1.20932742]
[1772064861514,1.37106382,2067.9,2067.1,1.20938678]
[1772064861715,1.37106382,2067.8,2067.1,1.20938678]
[1772064862563,1.37106382,2067.8,2067.2,2.55016569]
[1772064863156,2.58008911,2067.8,2067.3,1.20930682]
[1772064864073,1.37106382,2067.8,2067.3,1.20930682]
[1772064865367,1.20895639,2067.9,2067.3,1.20930682]
[1772064865566,2.58002021,2067.9,2067.3,1.20930682]
[1772064866642,4.33288187,2067.8,2066.7,1.2096579]
[1772064866863,1.33206269,2067.7,2066.7,1.2096579]
[1772064867170,1.33206269,2067.5,2066.7,1.2096579]
[1772064867536,1.33206269,2067.5,2066.6,3.10612361]
[1772064867752,1.33206269,2067.3,2066.6,0.001]
[1772064868067,1.33206269,2067.3,2066.6,1.82251659]
[1772064868364,1.33206269,2067.3,2066.6,3.03222578]
[1772064868657,1.33206269,2067.2,2066.6,0.001]
[1772064869040,1.655,2067.1,2066.6,0.001]
[1772064869240,1.33206269,2067.0,2066.6,0.001]
[1772064869853,1.20954085,2066.9,2066.6,0.001]
[1772064870169,2.54158975,2067.0,2066.6,0.001]
[1772064870352,1.33206269,2067.3,2066.8,1.82151659]
[1772064870558,1.33206269,2067.2,2066.6,0.001]
[1772064870954,1.33206269,2067.2,2066.4,0.001]
[1772064871770,1.24384646,2067.0,2066.4,0.001]
[1772064871968,1.20930682,2067.3,2066.9,1.82151659]
[1772064872278,2.45313662,2067.4,2066.9,1.82151659]
[1772064872571,2.45313662,2067.4,2066.7,1.82151659]
[1772064873144,1.24384646,2067.4,2066.7,1.82151659]
[1772064873367,2.45310333,2067.4,2066.7,1.82151659]
[1772064873578,1.24384646,2067.4,2066.7,1.82151659]
[1772064873879,2.45310622,2067.4,2066.7,1.82151659]
[1772064874251,1.20915372,2067.6,2066.9,1.82151659]
[1772064874452,4.10800018,2067.6,2066.8,3.03111597]
[1772064875773,4.10800018,2067.6,2066.8,4.37139681]
[1772064875972,1.24384646,2067.5,2066.8,4.37139681]
[1772064877548,1.655,2067.6,2067.0,1.82151659]
[1772064877743,1.655,2067.6,2066.8,6.1929134]
[1772064877744,1.655,2067.6,2067.2,1.82151659]
[1772064879265,1.24384646,2067.6,2066.8,3.03111597]
[1772064879776,2.4530104,2067.6,2066.8,4.37139681]
[1772064879987,1.24384646,2066.8,2066.1,0.001]
[1772064880157,1.24384646,2066.6,2066.1,0.001]
[1772064880564,1.24384646,2066.5,2066.1,0.001]
[1772064881094,1.654,2066.7,2065.6,0.001]
[1772064881095,1.24384646,2066.3,2065.6,0.001]
[1772064881293,1.654,2066.2,2065.7,14.5166556]
[1772064881586,6.49396861,2066.2,2065.7,14.5166556]
[1772064881772,2.86399698,2066.2,2065.7,14.5166556]
[1772064882757,2.86399698,2066.2,2066.0,0.001]
[1772064883158,2.86399698,2066.2,2065.8,0.001]
[1772064883657,1.656,2066.3,2065.9,14.5166556]
[1772064884490,4.72136305,2066.3,2065.8,0.001]
[1772064884784,4.72136305,2066.3,2065.6,0.001]
[1772064884785,1.24384646,2066.0,2065.6,0.001]
[1772064884992,1.24384646,2066.0,2065.6,14.5176556]
[1772064885173,2.89984646,2066.3,2065.4,0.001]
[1772064885367,1.24384646,2066.2,2065.4,0.001]
[1772064885883,2.45385565,2066.1,2065.4,0.001]
[1772064887088,1.24384646,2065.9,2065.4,0.001]
[1772064887292,1.657,2065.8,2065.4,0.001]
[1772064887975,1.2102435,2065.7,2065.4,0.001]
[1772064889488,1.658,2066.0,2065.4,0.001]
[1772064890886,1.21012633,2065.9,2065.4,0.001]
[1772064891087,2.86807282,2066.0,2065.6,1.82151659]
[1772064891292,2.86807282,2066.0,2065.4,0.001]
[1772064891772,1.24384646,2065.9,2065.4,0.001]
[1772064892003,1.24384646,2065.8,2065.1,0.001]
[1772064892203,4.68958941,2066.0,2065.1,2.5518693]
[1772064892600,5.93343587,2066.0,2065.1,2.5518693]
[1772064894027,2.86807282,2066.0,2065.3,1.34028084]
[1772064894730,2.86807282,2066.0,2065.3,1.34128084]
[1772064894945,0.002,2065.6,2065.3,1.34128084]
[1772064895417,0.002,2065.6,2065.3,0.001]
[1772064896841,0.002,2065.6,2065.4,1.47998737]
[1772064897028,0.002,2065.8,2065.4,1.47998737]
[1772064898052,0.002,2065.8,2065.4,2.690383]
[1772064900542,0.002,2065.8,2065.7,1.47998737]
[1772064900746,0.002,2065.8,2065.4,1.568]
[1772064900918,0.002,2065.8,2065.3,2.6914433]
[1772064901113,0.002,2065.8,2065.3,0.001]
[1772064901425,0.002,2065.8,2065.4,1.47998737]
[1772064901637,0.002,2065.8,2065.6,1.47998737]
[1772064902144,0.002,2065.8,2065.4,1.47998737]
[1772064902647,0.002,2065.8,2065.4,2.69039284]
[1772064903430,0.002,2065.8,2065.5,1.47998737]
[1772064905358,0.002,2065.8,2065.3,0.001]
[1772064905521,4.89414485,2065.8,2065.3,0.001]
[1772064905716,1.41562826,2065.7,2065.3,0.001]
[1772064906551,0.002,2065.8,2065.3,0.001]
[1772064906740,0.002,2065.8,2065.4,3.30150396]
[1772064907050,0.002,2065.8,2065.4,2.69036064]
[1772064908748,0.002,2065.8,2065.6,0.001]
[1772064910356,0.002,2065.8,2065.4,0.001]
[1772064910526,0.002,2065.8,2065.4,1.21141438]
[1772064910733,0.002,2065.8,2065.4,0.001]
[1772064912566,0.002,2065.8,2065.3,1.20247789]
[1772064913567,0.002,2065.8,2065.3,1.47998737]
[1772064914499,1.41762826,2065.8,2065.1,3.05198737]
[1772064915134,1.41762826,2065.8,2065.1,4.26257861]
[1772064915544,1.2102435,2065.7,2065.1,4.26257861]
[1772064917749,1.2102599,2065.7,2065.1,4.26257861]
[1772064918272,0.002,2065.8,2065.2,3.30150396]
[1772064918473,0.002,2065.8,2065.6,3.30150396]
[1772064919058,0.002,2065.8,2065.7,1.47998737]
[1772064919562,0.002,2066.1,2065.8,3.30150396]
[1772064920260,0.002,2066.1,2065.9,1.21012633]
[1772064922004,0.002,2066.1,2065.8,4.51164117]
[1772064923086,0.002,2066.1,2065.8,2.69012458]
[1772064924302,0.002,2066.1,2065.8,4.51164117]
[1772064924656,0.002,2066.1,2065.9,1.47998737]
[1772064925084,0.002,2066.1,2066.0,1.82151659]
[1772064925269,0.002,2066.1,2065.9,4.03325792]
[1772064925959,0.002,2066.1,2065.9,1.47998737]
[1772064926183,1.27220966,2066.1,2065.6,2.79730158]
[1772064926485,0.002,2066.1,2065.6,4.13345252]
[1772064926882,0.002,2066.1,2065.6,6.68672307]
[1772064927568,0.002,2066.1,2065.8,2.55327055]
[1772064927979,0.002,2066.1,2065.8,3.88942149]
[1772064928487,0.002,2066.1,2065.8,1.33615094]
[1772064929090,1.657,2066.5,2065.9,2.54627727]
[1772064930784,2.02667227,2066.5,2065.9,2.54627727]
[1772064930965,1.657,2066.5,2065.8,4.84050534]
[1772064931176,1.657,2066.5,2065.7,1.37224532]
[1772064931572,0.00097123,2066.6,2065.9,1.37224532]
[1772064931990,6.36,2066.8,2066.2,3.92551587]
[1772064932186,1.652,2067.2,2066.5,1.37224532]
[1772064933592,0.0853304,2067.1,2066.6,1.20971644]
[1772064933781,0.0853304,2067.1,2066.3,6.21173622]
[1772064933782,0.002,2066.8,2066.3,6.21173622]
[1772064933981,0.002,2066.8,2066.4,1.37224532]
[1772064934182,0.002,2066.8,2066.6,1.37224532]
[1772064935686,0.002,2066.8,2066.7,1.2096579]
[1772064936194,0.002,2066.8,2066.7,2.58190322]
[1772064936769,0.002,2067.2,2066.7,2.58190322]
[1772064939510,0.002,2067.2,2066.8,1.37224532]
[1772064940792,0.002,2067.2,2066.6,4.83884919]
[1772064940998,0.002,2067.2,2066.6,6.21109451]
[1772064941211,0.002,2067.2,2066.7,1.37224532]
[1772064941421,0.002,2067.2,2066.8,1.37224532]
[1772064942215,0.002,2067.2,2066.9,2.58178617]
[1772064943022,0.002,2067.4,2067.1,1.37124532]
[1772064943228,1e-08,2067.5,2067.4,1.37124532]
[1772064944612,1e-08,2067.5,2067.4,2.58049365]
[1772064944846,0.002,2067.9,2067.5,1.37124532]
[1772064945023,1.21455291,2068.6,2067.9,1.37124532]
[1772064945191,0.03910632,2068.4,2067.6,2.97224532]
[1772064945827,0.03910632,2068.4,2067.6,3.92451587]
[1772064946036,1.645,2068.4,2067.8,3.92451587]
[1772064946220,1.645,2068.4,2067.8,1.37124532]
[1772064946393,0.002,2068.4,2067.8,1.37124532]
[1772064946721,0.002,2068.4,2068.0,1.37124532]
[1772064946892,0.002,2068.4,2068.0,2.58009807]
[1772064948215,0.002,2068.4,2068.1,1.37124532]
[1772064948620,0.006,2068.6,2068.2,1.37124532]
[1772064948801,0.002,2068.5,2068.3,1.20872213]
[1772064949726,0.002,2068.5,2068.2,2.57998639]
[1772064950938,0.002,2068.5,2068.0,2.58013028]
[1772064951301,0.002,2068.5,2068.0,2.58013853]
[1772064951716,0.002,2068.5,2068.1,1.37124532]
[1772064952414,0.002,2068.5,2068.0,1.20889321]
[1772064952931,0.002,2068.5,2067.9,2.58017882]
[1772064953107,0.002,2068.5,2068.1,1.37124532]
[1772064954132,0.006,2068.6,2068.0,2.55327055]
[1772064954333,0.002,2068.4,2068.0,2.55327055]
[1772064954562,1.638,2068.4,2067.5,5.13370423]
[1772064954836,1.638,2068.4,2067.4,4.83675937]
[1772064954837,0.002,2068.3,2067.8,1.20901441]
[1772064955006,0.002,2068.3,2067.7,5.13354252]
[1772064955822,0.002,2068.2,2067.7,5.13354252]
[1772064956048,0.002,2068.2,2067.7,3.92451587]
[1772064956251,0.002,2068.1,2067.4,2.58049028]
[1772064956459,0.002,2068.3,2067.7,1.37124532]
[1772064957127,0.002,2068.2,2067.9,1.37124532]
[1772064957732,0.002,2068.2,2067.6,2.58031918]
[1772064958042,0.002,2068.1,2067.6,2.58031918]
[1772064958350,2.84666598,2068.4,2067.6,2.58031918]
[1772064958351,0.002,2068.3,2067.9,0.001]
[1772064958522,0.002,2068.2,2067.9,0.001]
[1772064958857,0.002,2068.2,2067.6,0.001]
[1772064959061,0.002,2068.1,2067.7,1.37124532]
[1772064959429,0.002,2068.1,2067.6,0.001]
[1772064960033,0.002,2068.2,2067.6,0.001]
[1772064960235,0.002,2068.1,2067.7,1.37124532]
[1772064960573,0.002,2068.1,2067.6,0.001]
[1772064960865,2.55327055,2067.7,2066.8,1.37124532]
[1772064961065,0.96128727,2067.9,2066.8,1.37124532]
[1772064961224,0.002,2067.8,2067.0,1.37124532]
[1772064961754,2.55527055,2067.7,2066.7,1.37224532]
[1772064961933,2.55327055,2067.5,2066.7,1.37224532]
[1772064962142,1.636,2067.4,2066.7,1.37224532]
[1772064962830,2.55327055,2067.1,2066.7,0.001]
[1772064963034,7.65981165,2066.8,2066.5,0.001]
[1772064963247,2.55327055,2066.6,2065.8,1.37124532]
[1772064963445,2.8446579,2066.7,2065.7,2.58144]
[1772064963633,2.8446579,2066.7,2065.8,1.37124532]
[1772064964066,2.8446579,2066.7,2066.0,1.37124532]
[1772064964362,5.39792845,2066.7,2065.7,2.58144]
[1772064964953,5.39792845,2066.7,2065.7,1.21019468]
[1772064965130,5.39792845,2066.7,2065.8,1.37124532]
[1772064965334,5.39792845,2066.7,2065.8,2.58142248]
[1772064965553,5.39792845,2066.7,2065.9,1.37124532]
[1772064965554,2.8446579,2066.7,2065.9,1.37124532]
[1772064966354,5.39792845,2066.7,2065.9,1.37124532]
[1772064966552,2.55327055,2066.5,2065.5,1.37124532]
[1772064966751,2.55327055,2066.3,2065.5,1.37124532]
[1772064967098,1.635,2066.2,2065.5,1.37124532]
[1772064967357,2.84499506,2066.2,2065.5,2.58158416]
[1772064967556,2.84499506,2066.2,2065.5,1.37124532]
[1772064968331,2.84499506,2066.2,2065.5,2.58160268]
[1772064968532,1.635,2066.2,2065.5,2.58160268]
[1772064968758,1.635,2066.2,2065.7,1.37124532]
[1772064970142,1.635,2066.2,2065.8,2.58143023]
[1772064970353,1.635,2066.2,2065.5,2.581606]
[1772064970354,2.55327055,2066.1,2065.5,2.581606]
[1772064971032,2.84496195,2066.2,2065.7,0.001]
[1772064971461,1.635,2066.2,2065.7,1.37224532]
[1772064971765,1.637,2066.4,2065.7,1.37224532]
[1772064972262,2.84684113,2066.4,2065.9,1.37124532]
[1772064972758,1.637,2066.4,2065.9,1.37124532]
[1772064973870,0.002,2066.4,2066.0,1.37124532]
[1772064974172,0.002,2066.6,2066.2,1.37124532]
[1772064974972,0.002,2066.6,2066.1,1.21000919]
[1772064975467,0.002,2066.6,2066.1,1.37024532]
[1772064976063,2.55527055,2066.6,2065.8,2.58040126]
[1772064976369,1.20977498,2066.5,2065.8,2.58040126]
[1772064976748,1.20977498,2066.5,2065.8,1.37024532]
[1772064976951,1.20977498,2066.5,2065.8,2.58042601]
[1772064977175,2.55327055,2066.2,2065.7,0.001]
[1772064977462,4.18727055,2066.4,2065.7,0.001]
[1772064977673,4.18727055,2066.4,2065.7,2.58147374]
[1772064977841,1.634,2066.4,2065.8,1.37024532]
[1772064978351,1.20989207,2066.3,2065.7,0.001]
[1772064978664,1.20989207,2066.3,2065.7,2.58148547]
[1772064978962,1.20989207,2066.3,2065.7,1.37124532]
[1772064979965,1.20989207,2066.3,2065.7,2.58148079]
[1772064980263,1.20989207,2066.3,2065.7,1.37124532]
[1772064981143,1.20989207,2066.3,2065.7,1.21124101]
[1772064981470,1.20989207,2066.3,2065.8,1.37024532]
[1772064983768,1.20989207,2066.3,2066.0,0.001]
[1772064984961,0.002,2066.6,2066.1,1.36924532]
[1772064986176,0.002,2066.9,2066.3,1.36924532]
[1772064986376,0.002,2066.9,2066.5,1.36924532]
[1772064986579,2.17029721,2067.9,2067.0,1.20948234]
[1772064986780,1.20900994,2067.9,2067.1,1.36924532]
[1772064986960,0.002,2067.8,2067.2,1.36924532]
[1772064987275,0.002,2068.0,2067.2,1.36924532]
[1772064988150,0.002,2068.0,2067.4,1.36924532]
[1772064988877,0.002,2068.0,2067.6,1.36924532]
[1772064989181,0.002,2068.2,2067.6,1.36924532]
[1772064989351,0.002,2068.1,2067.6,1.36924532]
[1772064989968,0.002,2068.2,2067.6,1.36924532]
[1772064990169,0.002,2068.1,2067.6,1.36924532]
[1772064990478,0.002,2068.1,2067.7,1.36924532]
[1772064990666,0.002,2068.1,2067.9,1.36924532]
[1772064990871,0.002,2068.2,2067.9,1.36924532]
[1772064991275,0.002,2068.2,2067.8,1.20901441]
[1772064991276,0.002,2068.2,2068.1,1.36824532]
[1772064991457,0.002,2068.4,2068.1,1.36824532]
[1772064992780,0.002,2068.4,2068.3,1.36824532]
[1772064993597,0.002,2068.4,2068.1,1.20879417]
[1772064993760,0.002,2068.4,2068.1,1.36824532]
[1772064994109,10.36,2069.5,2068.5,1.36824532]
[1772064994395,1.20798443,2069.6,2068.9,1.36824532]
[1772064994555,1.82144747,2069.0,2068.2,1.36824532]
[1772064994754,3.45544747,2069.2,2068.2,1.36824532]
[1772064994997,1.82144747,2068.8,2067.8,1.36824532]
[1772064995151,1.20825479,2069.1,2067.8,3.18969279]
[1772064995355,1.633,2069.0,2068.1,1.36824532]
[1772064995863,1.20825479,2069.1,2068.1,1.36824532]
[1772064996078,2.84125479,2069.1,2068.3,1.36824532]
[1772064996679,1.82144747,2068.8,2068.0,1.36824532]
[1772064996979,1.632,2069.0,2068.5,0.001]
[1772064997187,0.002,2068.6,2068.5,0.001]
[1772064997880,0.002,2068.6,2068.5,1.36924532]
[1772064998182,0.002,2068.8,2068.5,1.36924532]
[1772064998958,0.002,2068.8,2068.6,1.36724532]
[1772065000488,0.002,2069.1,2068.7,1.36724532]
[1772065000788,0.002,2069.1,2068.5,1.36824532]
[1772065000789,1.21226355,2069.1,2068.5,1.36824532]
[1772065000956,0.004,2069.1,2068.6,1.36724532]
[1772065002774,1.82144747,2069.0,2068.6,1.36724532]
[1772065002983,1.21225479,2069.1,2068.6,1.36724532]
[1772065003190,1.21225479,2069.1,2068.5,0.001]
[1772065003362,1.82144747,2068.9,2068.5,0.001]
[1772065003686,1.21225479,2069.1,2068.5,0.001]
[1772065004371,1.21225479,2069.1,2068.3,2.49125802]
[1772065004372,1.82144747,2068.8,2068.3,0.001]
[1772065004563,0.002,2069.0,2068.4,1.28158042]
[1772065005163,0.002,2069.0,2068.6,1.28158042]
[1772065005687,1.82144747,2069.4,2068.5,1.20860526]
[1772065005688,1.20790452,2069.8,2068.8,1.82144747]
[1772065005984,1.20761279,2070.2,2069.4,1.28158042]
[1772065006370,1.82144747,2070.1,2069.4,1.28158042]
[1772065006768,1.82144747,2069.9,2069.0,1.603]
[1772065006967,1.82144747,2069.7,2069.1,1.28158042]
[1772065007167,1.20778781,2069.9,2069.2,1.28158042]
[1772065008761,4.83045116,2070.5,2069.6,1.28158042]
[1772065008962,1.82144747,2071.3,2070.3,1.28158042]
[1772065009164,1.82144747,2070.9,2070.3,1.28158042]
[1772065009413,3.45044747,2070.9,2069.9,1.28158042]
[1772065009760,2.83585493,2071.5,2070.3,1.28158042]
[1772065010069,2.83585493,2071.5,2070.0,3.64289494]
[1772065010070,0.04021241,2071.4,2070.0,1.28158042]
[1772065010905,1.82144747,2071.2,2070.4,1.28158042]
[1772065011199,1.20697146,2071.3,2070.4,1.28158042]
[1772065011413,1.20697146,2071.3,2070.5,1.28158042]
[1772065011962,1.82144747,2071.2,2070.5,1.28158042]
[1772065012181,1.82144747,2070.8,2069.8,1.28158042]
[1772065012669,1.82144747,2070.4,2069.6,1.602]
[1772065012970,1.82144747,2070.4,2069.6,1.28158042]
[1772065013170,1.20755446,2070.3,2069.6,1.28158042]